fUSD/lending_fUSD_20250617
["ID","MTS","AMOUNT","RATE_DAILY","PERIOD"]
[366304822,1750180247149,-957.73,0.00016438,2]
[366304824,1750180247161,-733.17,0.00016438,2]
[366304826,1750180247172,-257.31635551,0.00016438,2]
[366304828,1750180247184,-490.0,0.00016438,2]
[366304830,1750180247195,-490.0,0.00016438,2]
[366304832,1750180247207,-448.70759291,0.00016438,2]
[366304834,1750180247218,-490.0,0.00016438,2]
[366304836,1750180247229,-568.78,0.00016438,2]
[366304838,1750180247239,-490.0,0.00016438,2]
[366304840,1750180247250,-926.87,0.00016438,2]
[366304842,1750180247261,-490.0,0.00016438,2]
[366304844,1750180247271,-685.32,0.00016438,2]
[366304846,1750180247282,-490.0,0.00016438,2]
[366304848,1750180247292,-668.2,0.00016438,2]
[366304850,1750180247302,-447.43789066,0.00016438,2]
[366304852,1750180247312,-490.0,0.00016438,2]
[366304854,1750180247322,-421.03770656,0.00016438,2]
[366304856,1750180247332,-490.0,0.00016438,2]
[366304858,1750180247342,-1236.9,0.00016438,2]
[366304860,1750180247352,-490.0,0.00016438,2]
[366304862,1750180247363,-490.0,0.00016438,2]
[366304864,1750180247377,-490.0,0.00016438,2]
[366304866,1750180247388,-490.0,0.00016438,2]
[366304868,1750180247398,-490.0,0.00016438,2]
[366304871,1750180247413,-490.0,0.00016438,2]
[366304873,1750180247423,-1734.13,0.00016438,2]
[366304875,1750180247433,-744.89,0.00016438,2]
[366304877,1750180247443,-490.0,0.00016438,2]
[366304879,1750180247454,-490.0,0.00016438,2]
[366304882,1750180247465,-633.4363044,0.00016438,2]
[366304884,1750180247476,-490.0,0.00016438,2]
[366304886,1750180247487,-490.0,0.00016438,2]
[366304888,1750180247497,-490.0,0.00016438,2]
[366304890,1750180247507,-729.41,0.00016438,2]
[366304892,1750180247518,-490.0,0.00016438,2]
[366304894,1750180247528,-490.0,0.00016438,2]
[366304895,1750180247539,-490.0,0.00016438,2]
[366304898,1750180247550,-490.0,0.00016438,2]
[366304900,1750180247560,-490.0,0.00016438,2]
[366304902,1750180247570,-500.0,0.00016438,2]
[366304904,1750180247580,-1766.06,0.00016438,2]
[366304906,1750180247591,-490.0,0.00016438,2]
[366304908,1750180247600,-490.0,0.00016438,2]
[366304910,1750180247610,-490.0,0.00016438,2]
[366304912,1750180247622,-490.0,0.00016438,2]
[366304914,1750180247633,-718.4,0.00016438,2]
[366304916,1750180247643,-490.0,0.00016438,2]
[366304918,1750180247653,-490.0,0.00016438,2]
[366304920,1750180247663,-490.0,0.00016438,2]
[366304922,1750180247673,-490.0,0.00016438,2]
[366304924,1750180247684,-490.0,0.00016438,2]
[366304926,1750180247694,-490.0,0.00016438,2]
[366304928,1750180247703,-490.0,0.00016438,2]
[366304930,1750180247714,-490.0,0.00016438,2]
[366304932,1750180247724,-500.62,0.00016438,2]
[366304934,1750180247734,-490.0,0.00016438,2]
[366304936,1750180247744,-490.0,0.00016438,2]
[366304938,1750180247754,-490.0,0.00016438,2]
[366304940,1750180247764,-490.0,0.00016438,2]
[366304942,1750180247775,-1281.49,0.00016438,2]
[366304945,1750180247785,-1591.31,0.00016438,2]
[366304947,1750180247797,-490.0,0.00016438,2]
[366304949,1750180247811,-490.0,0.00016438,2]
[366304951,1750180247821,-490.0,0.00016438,2]
[366304953,1750180247831,-2473.63,0.00016438,2]
[366304955,1750180247842,-490.0,0.00016438,2]
[366304957,1750180247854,-490.0,0.00016438,2]
[366304959,1750180247863,-490.0,0.00016438,2]
[366304961,1750180247877,-490.0,0.00016438,2]
[366304963,1750180247888,-490.0,0.00016438,2]
[366304965,1750180247898,-981.69,0.00016438,2]
[366304968,1750180247909,-490.0,0.00016438,2]
[366304970,1750180247919,-491.85,0.00016438,2]
[366304972,1750180247929,-480.0,0.00016438,2]
[366304974,1750180247939,-541.0,0.00016438,2]
[366304976,1750180247949,-490.0,0.00016438,2]
[366304978,1750180247959,-490.0,0.00016438,2]
[366304980,1750180247970,-168.02566792,0.00016438,2]
[366304982,1750180247979,-490.0,0.00016438,2]
[366304984,1750180247989,-490.0,0.00016438,2]
[366304986,1750180247999,-490.0,0.00016438,2]
[366304988,1750180248010,-490.0,0.00016438,2]
[366304990,1750180248019,-490.0,0.00016438,2]
[366304992,1750180248030,-490.0,0.00016438,2]
[366304994,1750180248042,-490.0,0.00016438,2]
[366304996,1750180248051,-490.0,0.00016438,2]
[366304998,1750180248061,-490.0,0.00016438,2]
[366305000,1750180248072,-490.0,0.00016438,2]
[366305002,1750180248083,-490.0,0.00016438,2]
[366305004,1750180248094,-335.07733847,0.00016438,2]
[366305006,1750180248105,-490.0,0.00016438,2]
[366305008,1750180248116,-490.0,0.00016438,2]
[366305010,1750180248128,-490.0,0.00016438,2]
[366305012,1750180248139,-490.0,0.00016438,2]
[366305014,1750180248150,-332.8141355,0.00016438,2]
[366305016,1750180248161,-490.0,0.00016438,2]
[366305018,1750180248172,-744.82,0.00016438,2]
[366305020,1750180248183,-559.8775849,0.00016438,2]
[366305022,1750180248195,-490.0,0.00016438,2]
[366305024,1750180248206,-490.0,0.00016438,2]
[366305026,1750180248217,-210.63594681,0.00016438,2]
[366305028,1750180248228,-490.0,0.00016438,2]
[366305030,1750180248238,-490.0,0.00016438,2]
[366305032,1750180248249,-490.0,0.00016438,2]
[366305034,1750180248260,-713.08,0.00016438,2]
[366305036,1750180248270,-490.0,0.00016438,2]
[366305038,1750180248281,-490.0,0.00016438,2]
[366305040,1750180248291,-1074.73,0.00016438,2]
[366305042,1750180248301,-490.0,0.00016438,2]
[366305044,1750180248312,-657.18,0.00016438,2]
[366305046,1750180248322,-490.0,0.00016438,2]
[366305048,1750180248333,-490.0,0.00016438,2]
[366305050,1750180248343,-490.0,0.00016438,2]
[366305053,1750180248362,-490.0,0.00016438,2]
[366305055,1750180248376,-490.0,0.00016438,2]
[366305057,1750180248387,-490.0,0.00016438,2]
[366305060,1750180248397,-490.0,0.00016438,2]
[366305062,1750180248408,-490.0,0.00016438,2]
[366305063,1750180248418,-452.25104179,0.00016438,2]
[366305064,1750180248429,-490.0,0.00016438,2]
[366305065,1750180248438,-1127.41,0.00016438,2]
[366305066,1750180248448,-490.0,0.00016438,2]
[366305067,1750180248458,-490.0,0.00016438,2]
[366305068,1750180248468,-559.78,0.00016438,2]
[366305069,1750180248478,-490.0,0.00016438,2]
[366305070,1750180248487,-490.0,0.00016438,2]
[366305071,1750180248497,-490.0,0.00016438,2]
[366305072,1750180248507,-490.0,0.00016438,2]
[366305073,1750180248517,-490.0,0.00016438,2]
[366305074,1750180248527,-646.23,0.00016438,2]
[366305075,1750180248538,-422.39183379,0.00016438,2]
[366305076,1750180248563,-67.60816621,0.00016438,2]
[366305078,1750180248574,-490.0,0.00016438,2]
[366305080,1750180248585,-490.0,0.00016438,2]
[366305082,1750180248595,-490.0,0.00016438,2]
[366305084,1750180248608,-607.44,0.00016438,2]
[366305086,1750180248624,-1570.02,0.00016438,2]
[366305088,1750180248635,-490.0,0.00016438,2]
[366305091,1750180248647,-1791.03,0.00016438,2]
[366305093,1750180248658,-490.0,0.00016438,2]
[366305095,1750180248668,-490.0,0.00016438,2]
[366305097,1750180248679,-490.0,0.00016438,2]
[366305099,1750180248689,-550.00456145,0.00016438,2]
[366305101,1750180248699,-490.0,0.00016438,2]
[366305103,1750180248710,-926.8,0.00016438,2]
[366305105,1750180248721,-490.0,0.00016438,2]
[366305107,1750180248731,-490.0,0.00016438,2]
[366305109,1750180248743,-490.0,0.00016438,2]
[366305111,1750180248754,-1285.19,0.00016438,2]
[366305113,1750180248765,-490.0,0.00016438,2]
[366305115,1750180248776,-490.0,0.00016438,2]
[366305117,1750180248787,-1146.1,0.00016438,2]
[366305119,1750180248797,-490.0,0.00016438,2]
[366305121,1750180248808,-490.0,0.00016438,2]
[366305123,1750180248818,-2035.95,0.00016438,2]
[366305125,1750180248828,-490.0,0.00016438,2]
[366305127,1750180248839,-490.0,0.00016438,2]
[366305130,1750180248851,-490.0,0.00016438,2]
[366305132,1750180248862,-490.0,0.00016438,2]
[366305134,1750180248875,-490.0,0.00016438,2]
[366305136,1750180248886,-490.0,0.00016438,2]
[366305138,1750180248898,-490.0,0.00016438,2]
[366305140,1750180248913,-490.0,0.00016438,2]
[366305142,1750180248923,-490.0,0.00016438,2]
[366305144,1750180248935,-490.0,0.00016438,2]
[366305146,1750180248945,-490.0,0.00016438,2]
[366305148,1750180248956,-490.0,0.00016438,2]
[366305151,1750180248967,-859.82,0.00016438,2]
[366305153,1750180248978,-1200.06,0.00016438,2]
[366305155,1750180248989,-490.0,0.00016438,2]
[366305157,1750180248999,-490.0,0.00016438,2]
[366305159,1750180249010,-490.0,0.00016438,2]
[366305161,1750180249020,-490.0,0.00016438,2]
[366305163,1750180249031,-490.0,0.00016438,2]
[366305165,1750180249041,-593.80910127,0.00016438,2]
[366305167,1750180249052,-490.0,0.00016438,2]
[366305169,1750180249062,-490.0,0.00016438,2]
[366305171,1750180249074,-490.0,0.00016438,2]
[366305173,1750180249085,-1927.27,0.00016438,2]
[366305175,1750180249097,-490.0,0.00016438,2]
[366305225,1750180249576,-490.0,0.00016438,2]
[366305227,1750180249587,-490.0,0.00016438,2]
[366305229,1750180249598,-490.0,0.00016438,2]
[366305231,1750180249608,-490.0,0.00016438,2]
[366305233,1750180249618,-490.0,0.00016438,2]
[366305236,1750180249630,-490.0,0.00016438,2]
[366305237,1750180249640,-490.0,0.00016438,2]
[366305240,1750180249650,-490.0,0.00016438,2]
[366305242,1750180249663,-490.0,0.00016438,2]
[366305244,1750180249673,-490.0,0.00016438,2]
[366305246,1750180249683,-536.98,0.00016438,2]
[366305248,1750180249693,-704.2,0.00016438,2]
[366305250,1750180249703,-490.0,0.00016438,2]
[366305252,1750180249717,-490.0,0.00016438,2]
[366305254,1750180249726,-490.0,0.00016438,2]
[366305256,1750180249736,-490.0,0.00016438,2]
[366305258,1750180249745,-654.32,0.00016438,2]
[366305260,1750180249755,-524.00107718,0.00016438,2]
[366305262,1750180249766,-490.0,0.00016438,2]
[366305264,1750180249776,-490.0,0.00016438,2]
[366305266,1750180249786,-490.0,0.00016438,2]
[366305268,1750180249795,-490.0,0.00016438,2]
[366305270,1750180249805,-1393.36,0.00016438,2]
[366305272,1750180249816,-533.66,0.00016438,2]
[366305274,1750180249826,-490.0,0.00016438,2]
[366305276,1750180249836,-490.0,0.00016438,2]
[366305278,1750180249849,-490.0,0.00016438,2]
[366305280,1750180249861,-536.6,0.00016438,2]
[366305282,1750180249875,-490.0,0.00016438,2]
[366305284,1750180249885,-344.0683497,0.00016438,2]
[366305286,1750180249896,-490.0,0.00016438,2]
[366305289,1750180249906,-490.0,0.00016438,2]
[366305291,1750180249918,-633.42,0.00016438,2]
[366305293,1750180249928,-567.87,0.00016438,2]
[366305295,1750180249938,-490.0,0.00016438,2]
[366305297,1750180249950,-490.0,0.00016438,2]
[366305299,1750180249960,-1185.65,0.00016438,2]
[366305301,1750180249970,-490.0,0.00016438,2]
[366305303,1750180249981,-490.0,0.00016438,2]
[366305305,1750180249991,-527.41,0.00016438,2]
[366305307,1750180250002,-490.0,0.00016438,2]
[366305309,1750180250013,-490.0,0.00016438,2]
[366305311,1750180250023,-490.0,0.00016438,2]
[366305313,1750180250033,-1333.1,0.00016438,2]
[366305315,1750180250043,-490.0,0.00016438,2]
[366305317,1750180250052,-735.07,0.00016438,2]
[366305319,1750180250062,-490.0,0.00016438,2]
[366305321,1750180250073,-490.0,0.00016438,2]
[366305323,1750180250083,-490.0,0.00016438,2]
[366305325,1750180250093,-490.0,0.00016438,2]
[366305327,1750180250104,-7023.18,0.00016438,2]
[366305329,1750180250115,-490.0,0.00016438,2]
[366305331,1750180250128,-562.63,0.00016438,2]
[366305333,1750180250138,-490.0,0.00016438,2]
[366305335,1750180250148,-490.0,0.00016438,2]
[366305337,1750180250158,-1793.57,0.00016438,2]
[366305340,1750180250168,-490.0,0.00016438,2]
[366305342,1750180250178,-490.0,0.00016438,2]
[366305344,1750180250189,-510.2,0.00016438,2]
[366305346,1750180250198,-698.25,0.00016438,2]
[366305348,1750180250208,-1149.3,0.00016438,2]
[366305350,1750180250219,-490.0,0.00016438,2]
[366305352,1750180250229,-490.0,0.00016438,2]
[366305354,1750180250239,-458.1633363,0.00016438,2]
[366305356,1750180250248,-490.0,0.00016438,2]
[366305358,1750180250258,-588.86,0.00016438,2]
[366305360,1750180250268,-490.0,0.00016438,2]
[366305362,1750180250278,-490.0,0.00016438,2]
[366305364,1750180250290,-490.0,0.00016438,2]
[366305366,1750180250300,-490.0,0.00016438,2]
[366305368,1750180250310,-490.0,0.00016438,2]
[366305370,1750180250320,-490.0,0.00016438,2]
[366305372,1750180250330,-490.0,0.00016438,2]
[366305374,1750180250340,-6715.16,0.00016438,2]
[366305376,1750180250350,-490.0,0.00016438,2]
[366305378,1750180250360,-1284.51,0.00016438,2]
[366305380,1750180250373,-3470.91,0.00016438,2]
[366305382,1750180250384,-2450.48,0.00016438,2]
[366305385,1750180250395,-18854.98,0.00016438,2]
[366305387,1750180250405,-490.0,0.00016438,2]
[366305389,1750180250416,-628.96,0.00016438,2]
[366305391,1750180250427,-490.0,0.00016438,2]
[366305393,1750180250437,-490.0,0.00016438,2]
[366305395,1750180250447,-490.0,0.00016438,2]
[366305397,1750180250458,-93.82329903,0.00016438,2]
[366305400,1750180250477,-1192.33670097,0.00016438,2]
[366305402,1750180250488,-484.41110217,0.00016438,2]
[366305404,1750180250498,-490.0,0.00016438,2]
[366305406,1750180250508,-669.54,0.00016438,2]
[366305408,1750180250518,-970.17,0.00016438,2]
[366305410,1750180250529,-339.68419686,0.00016438,2]
[366305413,1750180250543,-925.07580314,0.00016438,2]
[366305415,1750180250554,-1848.03,0.00016438,2]
[366305417,1750180250563,-1000.0,0.00016438,2]
[366305419,1750180250573,-490.0,0.00016438,2]
[366305421,1750180250583,-392.34503686,0.00016438,2]
[366305423,1750180250595,-97.65496314,0.00016438,2]
[366305425,1750180250605,-824.94,0.00016438,2]
[366305427,1750180250614,-377.40503686,0.00016438,2]
[366305429,1750180250629,-112.59496314,0.00016438,2]
[366305431,1750180250639,-383.09223497,0.00016438,2]
[366305434,1750180250651,-106.90776503,0.00016438,2]
[366305436,1750180250660,-490.0,0.00016438,2]
[366305438,1750180250670,-13903.93,0.00016438,2]
[366305440,1750180250681,-960.31,0.00016438,2]
[366305442,1750180250691,-535.69,0.00016438,2]
[366305444,1750180250701,-1712.45,0.00016438,2]
[366305446,1750180250711,-997.02,0.00016438,2]
[366305448,1750180250721,-490.0,0.00016438,2]
[366305450,1750180250732,-1164.76,0.00016438,2]
[366305452,1750180250742,-490.0,0.00016438,2]
[366305454,1750180250752,-490.0,0.00016438,2]
[366305456,1750180250763,-536.51,0.00016438,2]
[366305459,1750180250773,-1035.12,0.00016438,2]
[366305461,1750180250784,-2008.9,0.00016438,2]
[366305463,1750180250794,-173.36581957,0.00016438,2]
[366305465,1750180250804,-643.1,0.00016438,2]
[366305467,1750180250814,-1895.1,0.00016438,2]
[366305469,1750180250824,-750.28,0.00016438,2]
[366305471,1750180250834,-490.0,0.00016438,2]
[366305473,1750180250845,-490.0,0.00016438,2]
[366305475,1750180250859,-1098.82,0.00016438,2]
[366305477,1750180250872,-203.72738454,0.00016438,2]
[366305480,1750180250882,-490.0,0.00016438,2]
[366305482,1750180250892,-2554.17,0.00016438,2]
[366305484,1750180250902,-918.19278058,0.00016438,2]
[366305486,1750180250915,-2518.40721942,0.00016438,2]
[366305488,1750180250925,-3117.93,0.00016438,2]
[366305490,1750180250937,-490.0,0.00016438,2]
[366305493,1750180250949,-500.0,0.00016438,2]
[366305495,1750180250959,-500.0,0.00016438,2]
[366305497,1750180250970,-500.0,0.00016438,2]
[366305499,1750180250981,-490.0,0.00016438,2]
[366305501,1750180250991,-433.66278058,0.00016438,2]
[366305504,1750180251012,-1037.2,0.00016438,2]
[366305509,1750180251053,-123.77721942,0.00016438,2]
[366305511,1750180251063,-490.0,0.00016438,2]
[366305513,1750180251073,-633.35284765,0.00016438,2]
[366305515,1750180251082,-490.0,0.00016438,2]
[366305517,1750180251093,-490.0,0.00016438,2]
[366305519,1750180251103,-2999.1,0.00016438,2]
[366305521,1750180251113,-1167.82,0.00016438,2]
[366305523,1750180251126,-490.0,0.00016438,2]
[366305526,1750180251138,-1279.01,0.00016438,2]
[366305528,1750180251149,-627.2,0.00016438,2]
[366305529,1750180251159,-490.0,0.00016438,2]
[366305531,1750180251170,-490.0,0.00016438,2]
[366305534,1750180251181,-490.0,0.00016438,2]
[366305535,1750180251193,-1150.19,0.00016438,2]
[366305537,1750180251204,-694.02,0.00016438,2]
[366305540,1750180251215,-1861.35,0.00016438,2]
[366305542,1750180251226,-1169.55,0.00016438,2]
[366305544,1750180251236,-705.69,0.00016438,2]
[366305546,1750180251248,-490.0,0.00016438,2]
[366305548,1750180251258,-490.0,0.00016438,2]
[366305550,1750180251268,-1879.93,0.00016438,2]
[366305552,1750180251279,-491.12,0.00016438,2]
[366305554,1750180251290,-2042.55,0.00016438,2]
[366305556,1750180251301,-2355.84,0.00016438,2]
[366305558,1750180251311,-490.0,0.00016438,2]
[366305560,1750180251323,-503.87418187,0.00016438,2]
[366305562,1750180251333,-328.91312573,0.00016438,2]
[366305564,1750180251344,-490.0,0.00016438,2]
[366305566,1750180251354,-681.78,0.00016438,2]
[366305568,1750180251364,-490.0,0.00016438,2]
[366305570,1750180251379,-490.0,0.00016438,2]
[366305572,1750180251389,-490.0,0.00016438,2]
[366305574,1750180251399,-490.0,0.00016438,2]
[366305576,1750180251409,-1137.88,0.00016438,2]
[366305578,1750180251418,-1765.92,0.00016438,2]
[366305580,1750180251428,-862.59,0.00016438,2]
[366305582,1750180251438,-490.0,0.00016438,2]
[366305584,1750180251449,-1636.14,0.00016438,2]
[366305586,1750180251459,-550.97952706,0.00016438,2]
[366305588,1750180251469,-490.0,0.00016438,2]
[366305590,1750180251480,-1762.99,0.00016438,2]
[366305592,1750180251490,-490.0,0.00016438,2]
[366305594,1750180251500,-1484.81,0.00016438,2]
[366305596,1750180251511,-490.0,0.00016438,2]
[366305598,1750180251521,-2125.13,0.00016438,2]
[366305600,1750180251530,-3516.54,0.00016438,2]
[366305602,1750180251544,-490.0,0.00016438,2]
[366305603,1750180251554,-3464.04,0.00016438,2]
[366305604,1750180251563,-490.0,0.00016438,2]
[366305605,1750180251573,-1245.74,0.00016438,2]
[366305606,1750180251584,-1992.4,0.00016438,2]
[366305607,1750180251594,-8561.57,0.00016438,2]
[366305608,1750180251604,-503.32,0.00016438,2]
[366305609,1750180251614,-490.0,0.00016438,2]
[366305610,1750180251627,-490.0,0.00016438,2]
[366305611,1750180251637,-490.0,0.00016438,2]
[366305612,1750180251647,-532.93,0.00016438,2]
[366305613,1750180251657,-1043.76,0.00016438,2]
[366305614,1750180251667,-490.0,0.00016438,2]
[366305615,1750180251677,-2781.71,0.00016438,2]
[366305617,1750180251687,-1247.81,0.00016438,2]
[366305619,1750180251698,-490.0,0.00016438,2]
[366305621,1750180251708,-490.0,0.00016438,2]
[366305623,1750180251718,-490.0,0.00016438,2]
[366305625,1750180251728,-2146.03,0.00016438,2]
[366305627,1750180251737,-1880.65,0.00016438,2]
[366305630,1750180251750,-524.74,0.00016438,2]
[366305632,1750180251764,-490.0,0.00016438,2]
[366305634,1750180251774,-1170.89,0.00016438,2]
[366305636,1750180251785,-490.0,0.00016438,2]
[366305638,1750180251795,-1663.2,0.00016438,2]
[366305640,1750180251805,-490.0,0.00016438,2]
[366305642,1750180251815,-490.0,0.00016438,2]
[366305644,1750180251825,-752.21,0.00016438,2]
[366305646,1750180251836,-490.0,0.00016438,2]
[366305648,1750180251846,-5427.43,0.00016438,2]
[366305650,1750180251862,-1217.68,0.00016438,2]
[366305652,1750180251874,-490.0,0.00016438,2]
[366305654,1750180251884,-1317.18,0.00016438,2]
[366305656,1750180251894,-637.92,0.00016438,2]
[366305658,1750180251906,-742.89,0.00016438,2]
[366305660,1750180251917,-490.0,0.00016438,2]
[366305662,1750180251927,-490.0,0.00016438,2]
[366305664,1750180251937,-490.0,0.00016438,2]
[366305666,1750180251947,-490.0,0.00016438,2]
[366305669,1750180251957,-24389.48,0.00016438,2]
[366305671,1750180251967,-358.58254142,0.00016438,2]
[366305673,1750180251977,-2230.09,0.00016438,2]
[366305675,1750180251986,-490.0,0.00016438,2]
[366305677,1750180251996,-1240.88,0.00016438,2]
[366305679,1750180252006,-490.0,0.00016438,2]
[366305681,1750180252016,-490.0,0.00016438,2]
[366305683,1750180252026,-519.62,0.00016438,2]
[366305686,1750180252047,-660.62,0.00016438,2]
[366305688,1750180252057,-530.0,0.00016438,2]
[366305690,1750180252068,-490.0,0.00016438,2]
[366305692,1750180252078,-631.84,0.00016438,2]
[366305694,1750180252088,-720.22,0.00016438,2]
[366305696,1750180252099,-490.0,0.00016438,2]
[366305698,1750180252109,-790.89,0.00016438,2]
[366305700,1750180252119,-490.0,0.00016438,2]
[366305703,1750180252141,-490.0,0.00016438,2]
[366305705,1750180252150,-490.0,0.00016438,2]
[366305707,1750180252161,-2115.02,0.00016438,2]
[366305709,1750180252170,-490.0,0.00016438,2]
[366305711,1750180252181,-490.0,0.00016438,2]
[366305713,1750180252190,-1844.7,0.00016438,2]
[366305715,1750180252199,-490.0,0.00016438,2]
[366305717,1750180252209,-1307.29,0.00016438,2]
[366305719,1750180252219,-1093.27,0.00016438,2]
[366305721,1750180252229,-6576.04,0.00016438,2]
[366305723,1750180252238,-490.0,0.00016438,2]
[366305725,1750180252248,-490.0,0.00016438,2]
[366305727,1750180252258,-970.57,0.00016438,2]
[366305728,1750180252269,-3051.47,0.00016438,2]
[366305731,1750180252279,-2981.31,0.00016438,2]
[366305733,1750180252289,-490.0,0.00016438,2]
[366305735,1750180252298,-197.84499092,0.00016438,2]
[366305736,1750180252308,-868.85,0.00016438,2]
[366305739,1750180252318,-1232.72,0.00016438,2]
[366305740,1750180252328,-490.0,0.00016438,2]
[366305742,1750180252338,-490.0,0.00016438,2]
[366305745,1750180252347,-364.69569699,0.00016438,2]
[366305747,1750180252357,-592.73,0.00016438,2]
[366305749,1750180252366,-490.0,0.00016438,2]
[366305750,1750180252377,-518.85,0.00016438,2]
[366305753,1750180252388,-490.0,0.00016438,2]
[366305754,1750180252398,-490.0,0.00016438,2]
[366305757,1750180252408,-490.0,0.00016438,2]
[366305758,1750180252419,-490.0,0.00016438,2]
[366305761,1750180252429,-2317.76,0.00016438,2]
[366305763,1750180252438,-490.0,0.00016438,2]
[366305765,1750180252448,-862.19,0.00016438,2]
[366305767,1750180252458,-490.0,0.00016438,2]
[366305769,1750180252472,-490.0,0.00016438,2]
[366305771,1750180252483,-1299.59,0.00016438,2]
[366305773,1750180252493,-1721.63,0.00016438,2]
[366305775,1750180252503,-832.24,0.00016438,2]
[366305777,1750180252513,-711.28,0.00016438,2]
[366305779,1750180252524,-490.0,0.00016438,2]
[366305781,1750180252535,-490.0,0.00016438,2]
[366305783,1750180252545,-490.0,0.00016438,2]
[366305786,1750180252556,-834.37,0.00016438,2]
[366305788,1750180252566,-490.0,0.00016438,2]
[366305790,1750180252576,-538.5,0.00016438,2]
[366305792,1750180252585,-217.60292241,0.00016438,2]
[366305794,1750180252595,-490.0,0.00016438,2]
[366305796,1750180252604,-490.0,0.00016438,2]
[366305798,1750180252614,-490.0,0.00016438,2]
[366305800,1750180252627,-22265.86,0.00016438,2]
[366305802,1750180252636,-748.7,0.00016438,2]
[366305804,1750180252646,-1159.42,0.00016438,2]
[366305806,1750180252656,-2471.51,0.00016438,2]
[366305808,1750180252666,-172.85857082,0.00016438,2]
[366305810,1750180252677,-490.0,0.00016438,2]
[366305812,1750180252688,-490.0,0.00016438,2]
[366305814,1750180252698,-490.0,0.00016438,2]
[366305816,1750180252708,-661.86,0.00016438,2]
[366305818,1750180252719,-4894.9,0.00016438,2]
[366305821,1750180252729,-490.0,0.00016438,2]
[366305823,1750180252739,-490.0,0.00016438,2]
[366305825,1750180252750,-1203.36,0.00016438,2]
[366305827,1750180252760,-1510.51,0.00016438,2]
[366305829,1750180252775,-490.0,0.00016438,2]
[366305832,1750180252794,-45.68013809,0.00016438,2]
[366305944,1750180253883,-443.28907872,0.00016438,2]
[366305946,1750180253899,-20.38078319,0.00016438,2]
[366305949,1750180253911,-573.64,0.00016438,2]
[366305951,1750180253924,-490.0,0.00016438,2]
[366305953,1750180253936,-1058.39,0.00016438,2]
[366305955,1750180253948,-490.0,0.00016438,2]
[366305957,1750180253959,-2026.85,0.00016438,2]
[366305959,1750180253971,-490.0,0.00016438,2]
[366305962,1750180253984,-490.0,0.00016438,2]
[366305964,1750180253996,-1271.96,0.00016438,2]
[366305966,1750180254008,-3039.14,0.00016438,2]
[366305969,1750180254021,-1239.6,0.00016438,2]
[366305971,1750180254033,-490.0,0.00016438,2]
[366305973,1750180254045,-1399.97,0.00016438,2]
[366305975,1750180254057,-490.0,0.00016438,2]
[366305978,1750180254070,-490.0,0.00016438,2]
[366305980,1750180254087,-1077.61,0.00016438,2]
[366305983,1750180254102,-3168.28,0.00016438,2]
[366305985,1750180254117,-490.0,0.00016438,2]
[366305988,1750180254138,-490.0,0.00016438,2]